,Portfolio,Expense Area,Cost Centre,Expense Type,Account Code,Amount,Supplier Name,SupplierId,Pay Date,Transaction No.
INSERTED DETAIL,Resources & Corporate Governance ,Toilet Cleaning,WBC01,Materials,0303,525.00,Arco Limited,100015,03/04/2014,10199687
INSERTED DETAIL,Resources & Corporate Governance ,Grounds Maintenance,WGM00,Materials,0303,25.62,Arco Limited,100015,03/04/2014,10199687
INSERTED DETAIL,Resources & Corporate Governance ,Highways,WHG00,Materials,0303,30.92,Arco Limited,100015,03/04/2014,10199687
INSERTED DETAIL,Resources & Corporate Governance,Housing Maintenance,WHM00,Materials,0303,7.38,Arco Limited,100015,03/04/2014,10199687
INSERTED DETAIL,Resources & Corporate Governance ,Street Cleansing,WSC00,Materials,0303,47.60,Arco Limited,100015,03/04/2014,10199687
INSERTED DETAIL,Resources & Corporate Governance ,Domestic Waste Collection,WWC00,Materials,0303,27.93,Arco Limited,100015,03/04/2014,10199687
INSERTED DETAIL,Housing Revenue Account ,Property Maintenance,MAN23,Personal Protective Clothing,0340,36.97,Arco Limited,100015,03/04/2014,10199687
INSERTED DETAIL,Resources & Corporate Governance ,General Administration,WAD00,Personal Protective Clothing,0340,48.12,Arco Limited,100015,03/04/2014,10199687
INSERTED DETAIL,Resources & Corporate Governance ,Domestic Waste Collection,WWC00,Personal Protective Clothing,0340,37.80,Arco Limited,100015,03/04/2014,10199687
INSERTED DETAIL,Resources & Corporate Governance ,Toilet Cleaning,WBC01,Personal Protective Clothing,0340,9.00,Arco Limited,100015,10/04/2014,10200753
INSERTED DETAIL,Resources & Corporate Governance ,Grounds Maintenance,WGM00,Personal Protective Clothing,0340,94.76,Arco Limited,100015,10/04/2014,10200753
INSERTED DETAIL,Resources & Corporate Governance ,Highways,WHG00,Personal Protective Clothing,0340,13.54,Arco Limited,100015,10/04/2014,10200753
INSERTED DETAIL,Resources & Corporate Governance ,Street Cleansing,WSC00,Personal Protective Clothing,0340,108.29,Arco Limited,100015,10/04/2014,10200753
INSERTED DETAIL,Resources & Corporate Governance ,Garage Internal,WVR01,Personal Protective Clothing,0340,18.05,Arco Limited,100015,10/04/2014,10200753
INSERTED DETAIL,Resources & Corporate Governance ,Domestic Waste Collection,WWC00,Personal Protective Clothing,0340,189.51,Arco Limited,100015,10/04/2014,10200753
INSERTED DETAIL,Resources & Corporate Governance ,Trade Waste Collection,WWC01,Personal Protective Clothing,0340,18.05,Arco Limited,100015,10/04/2014,10200753
INSERTED DETAIL,Resources & Corporate Governance ,Grounds Maintenance,WGM00,Materials,0303,652.05,A J Plants,100029,10/04/2014,10200801
INSERTED DETAIL,Housing Revenue Account ,Repairs and Maintenance - Void works,UMR09,R&M External Contractors,0100,1963.73,AWM Electrical Contractors Ltd,100051,03/04/2014,10200251
INSERTED DETAIL,Housing Revenue Account ,Repairs and Maintenance - Void works,UMR09,R&M External Contractors,0100,681.35,AWM Electrical Contractors Ltd,100051,03/04/2014,10200252
INSERTED DETAIL,Housing Revenue Account ,Unplanned Maintenance and Repair,UMR00,R&M External Contractors,0100,1471.73,AWM Electrical Contractors Ltd,100051,03/04/2014,10200328
INSERTED DETAIL,Housing Revenue Account ,Unplanned Maintenance and Repair,UMR00,R&M External Contractors,0100,498.25,AWM Electrical Contractors Ltd,100051,03/04/2014,10200329
INSERTED DETAIL,Housing Revenue Account ,Unplanned Maintenance and Repair,UMR00,R&M External Contractors,0100,3514.62,AWM Electrical Contractors Ltd,100051,03/04/2014,10200450
INSERTED DETAIL,Housing Revenue Account ,Estate Management,MAN22,Estates,0457,34.04,AWM Electrical Contractors Ltd,100051,03/04/2014,10200450
INSERTED DETAIL,Housing Revenue Account ,Property Maintenance,MAN23,Estates,0457,510.84,AWM Electrical Contractors Ltd,100051,03/04/2014,10200450
INSERTED DETAIL,Housing Revenue Account ,Unplanned Maintenance and Repair,UMR00,R&M External Contractors,0100,2449.15,AWM Electrical Contractors Ltd,100051,03/04/2014,10200451
INSERTED DETAIL,Housing Revenue Account ,Unplanned Maintenance and Repair,UMR00,R&M External Contractors,0100,766.26,AWM Electrical Contractors Ltd,100051,10/04/2014,10200628
INSERTED DETAIL,Housing Revenue Account ,Repairs and Maintenance - Void works,UMR09,R&M External Contractors,0100,2091.95,AWM Electrical Contractors Ltd,100051,10/04/2014,10200629
INSERTED DETAIL,Housing Revenue Account ,Repairs and Maintenance - Void works,UMR09,R&M External Contractors,0100,1381.43,AWM Electrical Contractors Ltd,100051,10/04/2014,10200671
INSERTED DETAIL,Housing Revenue Account ,Unplanned Maintenance and Repair,UMR00,R&M External Contractors,0100,596.42,AWM Electrical Contractors Ltd,100051,10/04/2014,10200832
INSERTED DETAIL,Capital Programme ,Disabled Adaptations,HCR01,Capital Contract Payments,5000,116.47,AWM Electrical Contractors Ltd,100051,10/04/2014,10200832
INSERTED DETAIL,Housing Revenue Account ,Repairs and Maintenance - Void works,UMR09,R&M External Contractors,0100,1885.95,AWM Electrical Contractors Ltd,100051,17/04/2014,10200919
INSERTED DETAIL,Housing Revenue Account ,Unplanned Maintenance and Repair,UMR00,R&M External Contractors,0100,223.29,AWM Electrical Contractors Ltd,100051,17/04/2014,10200920
INSERTED DETAIL,Housing Revenue Account ,Repairs and Maintenance - Void works,UMR09,R&M External Contractors,0100,1080.97,AWM Electrical Contractors Ltd,100051,17/04/2014,10200920
INSERTED DETAIL,Housing Revenue Account ,Unplanned Maintenance and Repair,UMR00,R&M External Contractors,0100,866.36,AWM Electrical Contractors Ltd,100051,17/04/2014,10200922
INSERTED DETAIL,Housing Revenue Account ,Unplanned Maintenance and Repair,UMR00,R&M External Contractors,0100,1303.10,AWM Electrical Contractors Ltd,100051,17/04/2014,10201034
INSERTED DETAIL,Resources & Corporate Governance ,General Administration,WAD00,Subscriptions,0421,2075.00,APSE,100052,24/04/2014,10200934
INSERTED DETAIL,Capital Programme ,Kitchen Modifications,HIK10,Capital Contract Payments,5000,11489.30,A C E Carpentry & Joinery Contractors Ltd,100085,03/04/2014,10200103
INSERTED DETAIL,Housing Revenue Account ,Repairs and Maintenance - Void works,UMR09,R&M External Contractors,0100,2522.35,A C E Carpentry & Joinery Contractors Ltd,100085,10/04/2014,10200694
INSERTED DETAIL,Capital Programme ,Kitchen Modifications,HIK10,Capital Contract Payments,5000,284.00,A C E Carpentry & Joinery Contractors Ltd,100085,10/04/2014,10200694
INSERTED DETAIL,Economy Development & Culture,Decrim. of Car Parking on street parking,DPE02,Maintenance of Equipment,0301,510.00,Cale Briparc Ltd,100158,03/04/2014,10200184
INSERTED DETAIL,Resources & Corporate Governance ,Council Tax and NNDR Collection,CTX01,External Contractor & Operator,0742,68.42,Bristow & Sutor,100159,03/04/2014,10199810
INSERTED DETAIL,Resources & Corporate Governance ,WSU Depot,WDP00,Telephone Expenses,0371,459.90,British Telecommunications Plc,100161,10/04/2014,10200501
INSERTED DETAIL,Resources & Corporate Governance ,Town Hall,OFF00,R&M External Contractors,0100,75.78,British Telecommunications Plc,100161,10/04/2014,10200569
INSERTED DETAIL,Housing Revenue Account ,Control Centre (HRA),CCE00,New Equipment,0300,57.00,British Telecommunications Plc,100161,10/04/2014,10200569
INSERTED DETAIL,Economy Development & Culture,Art Gallery and Museum,AGM00,Telephone Expenses,0371,211.46,British Telecommunications Plc,100161,10/04/2014,10200569
INSERTED DETAIL,Economy Development & Culture,The Benn Hall,BHL00,Telephone Expenses,0371,37.97,British Telecommunications Plc,100161,10/04/2014,10200569
INSERTED DETAIL,Resources & Corporate Governance ,Customer and Information Strategy,CIS10,Telephone Expenses,0371,1082.63,British Telecommunications Plc,100161,10/04/2014,10200569
INSERTED DETAIL,Resources & Corporate Governance ,Civic Responsibilities,CIV00,Telephone Expenses,0371,43.57,British Telecommunications Plc,100161,10/04/2014,10200569
INSERTED DETAIL,Economy Development & Culture,Car Parks General,CPK01,Telephone Expenses,0371,19.00,British Telecommunications Plc,100161,10/04/2014,10200569
INSERTED DETAIL,Resources & Corporate Governance ,Council Tax and NNDR Collection,CTX01,Telephone Expenses,0371,226.56,British Telecommunications Plc,100161,10/04/2014,10200569
INSERTED DETAIL,Economy Development & Culture,Decrim. of Car Parking on street parking,DPE02,Telephone Expenses,0371,75.98,British Telecommunications Plc,100161,10/04/2014,10200569
INSERTED DETAIL,Sustainable Inclusive Communities,Housing Benefit Administration,HBA00,Telephone Expenses,0371,37.89,British Telecommunications Plc,100161,10/04/2014,10200569
INSERTED DETAIL,Resources & Corporate Governance ,Town Hall,OFF00,Telephone Expenses,0371,37.89,British Telecommunications Plc,100161,10/04/2014,10200569
INSERTED DETAIL,Sustainable Environment ,Parks,PKS00,Telephone Expenses,0371,50.45,British Telecommunications Plc,100161,10/04/2014,10200569
INSERTED DETAIL,Resources & Corporate Governance ,Central Telephone Service,TEL00,Telephone Expenses,0371,37.89,British Telecommunications Plc,100161,10/04/2014,10200569
INSERTED DETAIL,Economy Development & Culture,Visitor Centre,VSC00,Telephone Expenses,0371,75.93,British Telecommunications Plc,100161,10/04/2014,10200569
INSERTED DETAIL,Sustainable Inclusive Communities,Woodside Park,TVR00,R&M External Contractors,0100,3851.72,Bt Redcare,100221,17/04/2014,10201027
INSERTED DETAIL,Housing Revenue Account ,Unplanned Maintenance and Repair,UMR00,R&M External Contractors,0100,1141.20,Barron McCann Ltd,100248,10/04/2014,10200840
INSERTED DETAIL,Resources & Corporate Governance,Corporate Property R&M,CPA01,R&M External Contractors,0100,2335.48,Charles Watts Engineering Ltd,100302,03/04/2014,10200493
INSERTED DETAIL,Resources & Corporate Governance,Corporate Property R&M,CPA01,R&M External Contractors,0100,3190.00,Chillaire Service & Maintenance Ltd,100305,10/04/2014,10200573
INSERTED DETAIL,Economy Development & Culture,Economic Development General,ECD00,Borough Local Plan,0452,4080.50,Coventry City Council,100320,10/04/2014,10199365
INSERTED DETAIL,Sustainable Inclusive Communities,Housing Strategy & Enabling,HSE00,Consultancy Costs,0740,4080.50,Coventry City Council,100320,10/04/2014,10199365
INSERTED DETAIL,Resources & Corporate Governance ,Financial Services,RES10,Training fees,0011,500.00,Cipfa Business Ltd,100341,10/04/2014,10200623
INSERTED DETAIL,Resources & Corporate Governance ,Financial Services,RES10,Ref. Books Journals & Magazines,0353,698.75,Cipfa Business Ltd,100341,17/04/2014,10200897
INSERTED DETAIL,Resources & Corporate Governance ,IT Procurement,CMP00,IT Capital Expenditure,5025,7165.00,Stone Computers,100390,10/04/2014,10200788
INSERTED DETAIL,Resources & Corporate Governance ,IT Procurement,CMP00,IT Capital Expenditure,5025,15000.00,Stone Computers,100390,17/04/2014,10201057
INSERTED DETAIL,Resources & Corporate Governance ,IT Procurement,CMP00,IT Capital Expenditure,5025,2830.00,Stone Computers,100390,17/04/2014,10201058
INSERTED DETAIL,Economy Development & Culture,Economic Development General,ECD00,Development Activities,0450,1600.00,Coventry & Warwickshire Chamber Of Commerce,100412,10/04/2014,10200702
INSERTED DETAIL,Economy Development & Culture,Art Gallery and Museum,AGM00,Subscriptions,0421,1000.00,Contemporary Art Society,100422,10/04/2014,10200716
INSERTED DETAIL,Sustainable Environment ,Clinical Waste,REF04,External Contractor & Operator,0742,541.58,OCS Group UK Ltd t/a Cannon,100436,24/04/2014,10200979
INSERTED DETAIL,Sustainable Environment,Regulatory Services,REG00,Other Miscellaneous Expenses,0444,1500.00,Heart Of England Co-operative Society Ltd,100479,03/04/2014,10200262
INSERTED DETAIL,Capital Programme ,Disabled Facilities Grant,REN01,Capital Grants,5014,4599.30,Bob Doyle,100575,03/04/2014,10199622
INSERTED DETAIL,Housing Revenue Account ,Repairs and Maintenance - Void works,UMR09,R&M External Contractors,0100,1377.02,Dulux Decorator Centres,100597,10/04/2014,10200828
INSERTED DETAIL,Sustainable Environment,Crematorium,CRM00,Gas,0131,1435.93,ESPO,100641,03/04/2014,10199653
INSERTED DETAIL,Sustainable Environment,Crematorium,CRM00,Gas,0131,-1435.93,ESPO,100641,03/04/2014,10200256
INSERTED DETAIL,Sustainable Environment,Crematorium,CRM00,Gas,0131,1079.56,ESPO,100641,03/04/2014,10200257
INSERTED DETAIL,Sustainable Environment,Crematorium,CRM00,New Equipment,0300,1011.60,ESPO,100641,10/04/2014,10200574
INSERTED DETAIL,Sustainable Environment,Crematorium,CRM00,New Equipment,0300,953.00,ESPO,100641,10/04/2014,10200575
INSERTED DETAIL,Resources & Corporate Governance,Corporate Property Central Utilities,CPA02,Gas,0131,1608.03,ESPO,100641,24/04/2014,10201107
INSERTED DETAIL,Housing Revenue Account ,Albert Square AP,AGP20,Gas,0131,1838.39,ESPO,100641,24/04/2014,10201109
INSERTED DETAIL,Housing Revenue Account ,Lesley Souter House AP,AGP16,Gas,0131,1239.97,ESPO,100641,24/04/2014,10201110
INSERTED DETAIL,Housing Revenue Account ,Tanser Court AP,AGP17,Gas,0131,1637.74,ESPO,100641,24/04/2014,10201111
INSERTED DETAIL,Resources & Corporate Governance,Corporate Property Central Utilities,CPA02,Gas,0131,2140.30,ESPO,100641,24/04/2014,10201129
INSERTED DETAIL,Sustainable Environment,Crematorium,CRM00,Gas,0131,2647.44,ESPO,100641,24/04/2014,10201131
INSERTED DETAIL,Resources & Corporate Governance ,Head of Customer and Information Services,CIS00,Consultancy Costs,0740,7491.04,Local Government Employers,100666,10/04/2014,10200392
INSERTED DETAIL,,Balance Sheet,BS,Car Leasing Scheme,9244,-1503.88,Lex Autolease Ltd,100844,04/02/2014,10197432
INSERTED DETAIL,Resources & Corporate Governance ,Maintenance of Customer Services Systems,CIS21,Software Maintenance,0374,4066.89,NTT DATA Figtree Systems Europe Ltd,100852,17/04/2014,10200895
INSERTED DETAIL,Resources & Corporate Governance ,Customer and Information Strategy,CIS10,Software Maintenance,0374,2340.00,Fast Corporate Services Ltd,100853,10/04/2014,10200510
INSERTED DETAIL,Capital Programme ,Open Spaces Refurbishment,LEI08,Capital Contract Payments,5000,7159.68,Glasdon U K Limited,100886,03/04/2014,10200473
INSERTED DETAIL,Resources & Corporate Governance ,Town Hall,OFF00,Materials,0303,791.44,Greenham,100890,24/04/2014,10201073
INSERTED DETAIL,Housing Revenue Account ,Supervision and Management General,MAN00,Movement Incentives,0454,440.00,David Gilkes & Sons Ltd,100913,03/04/2014,10200260
INSERTED DETAIL,Economy Development & Culture,Planning General/Income,PLN00,Other Agencies,0734,3150.00,Gerald Eve,100929,24/04/2014,10201171
INSERTED DETAIL,Resources & Corporate Governance ,Grounds Maintenance,WGM00,Materials,0303,1429.97,BHGS Ltd,100950,03/04/2014,10200457
INSERTED DETAIL,Resources & Corporate Governance ,Human Resources Centralised Services,RES31,Recruitment Expenses,0012,1033.00,TMP (UK) LTD,100972,03/04/2014,10200040
INSERTED DETAIL,Resources & Corporate Governance ,Human Resources Centralised Services,RES31,Recruitment Expenses,0012,2869.68,TMP (UK) LTD,100972,03/04/2014,10200041
INSERTED DETAIL,Resources & Corporate Governance ,Human Resources Centralised Services,RES31,Recruitment Expenses,0012,1068.00,TMP (UK) LTD,100972,10/04/2014,10200608
INSERTED DETAIL,Resources & Corporate Governance,Corporate Property R&M,CPA01,R&M External Contractors,0100,3847.00,ThyssenKrupp Elevator UK,100985,24/04/2014,10200968
INSERTED DETAIL,Economy Development & Culture,Planning General/Income,PLN00,Ref. Books Journals & Magazines,0353,1431.00,Haymarket Publishing Services Ltd,101038,10/04/2014,10200730
INSERTED DETAIL,Housing Revenue Account ,Control Centre (HRA),CCE00,New Equipment,0300,3190.00,Chubb Systems LTD,101154,24/04/2014,10201075
INSERTED DETAIL,Resources & Corporate Governance,Housing Maintenance,WHM00,External Contractor & Operator,0742,1625.00,Clews Recycling Limited,101213,17/04/2014,10200817
INSERTED DETAIL,Resources & Corporate Governance ,Grounds Maintenance,WGM00,External Contractor & Operator,0742,8670.00,Lilbourne Turf Supplies,101225,10/04/2014,10200813
INSERTED DETAIL,,User Balance Sheet Cost Centre,BSU,Revenue Section Agreements,9865,1500.00,Long Lawford Parish Council,101228,10/04/2014,10200735
INSERTED DETAIL,Economy Development & Culture,Planning General/Income,PLN00,Consultancy Costs,0740,2448.90,L G S Ltd,101252,10/04/2014,10200705
INSERTED DETAIL,Resources & Corporate Governance,Housing Maintenance,WHM00,Materials,0303,497.01,Melbros Ltd,101291,03/04/2014,10199752
INSERTED DETAIL,Resources & Corporate Governance,Housing Maintenance,WHM00,Materials,0303,1005.00,Melbros Ltd,101291,03/04/2014,10199757
INSERTED DETAIL,Resources & Corporate Governance,Housing Maintenance,WHM00,Materials,0303,1374.89,Melbros Ltd,101291,10/04/2014,10200117
INSERTED DETAIL,Resources & Corporate Governance,Housing Maintenance,WHM00,Materials,0303,497.01,Melbros Ltd,101291,10/04/2014,10200119
INSERTED DETAIL,Resources & Corporate Governance,Housing Maintenance,WHM00,Materials,0303,1208.00,Melbros Ltd,101291,24/04/2014,10200122
INSERTED DETAIL,Resources & Corporate Governance,Corporate Property R&M,CPA01,R&M External Contractors,0100,1220.55,M W D Services Ltd,101293,03/04/2014,10200338
INSERTED DETAIL,Housing Revenue Account ,Unplanned Maintenance and Repair,UMR00,R&M External Contractors,0100,1332.00,Msm Environmental Services,101317,03/04/2014,10200250
INSERTED DETAIL,Economy Development & Culture,Car Parks General,CPK01,Car Park Maintenance,0103,4662.78,Nuneaton Signs Ltd,101371,03/04/2014,10200479
INSERTED DETAIL,Economy Development & Culture,James St. Multi-storey Car Park,CPK02,Car Park Maintenance,0103,3390.88,Nuneaton Signs Ltd,101371,03/04/2014,10200481
INSERTED DETAIL,Economy Development & Culture,Visitor Centre,VSC00,Events Tickets - Zero Rated,1405,1241.68,National Express Ltd,101392,03/04/2014,10200517
INSERTED DETAIL,Housing Revenue Account ,Sheltered Housing,AGP00,Telephone Expenses,0371,7.90,EE Ltd t/a Orange Personal Communications,101404,03/04/2014,10199909
INSERTED DETAIL,Sustainable Environment ,Head of Environmental Services,ENV00,Telephone Expenses,0371,7.75,EE Ltd t/a Orange Personal Communications,101404,03/04/2014,10199909
INSERTED DETAIL,Resources & Corporate Governance ,WSU Depot,WDP00,Telephone Expenses,0371,403.17,EE Ltd t/a Orange Personal Communications,101404,03/04/2014,10199909
INSERTED DETAIL,Capital Programme ,Disabled Facilities Grant,REN01,Capital Grants,5014,2081.73,Orbit Group Limited,101414,10/04/2014,10200290
INSERTED DETAIL,Capital Programme ,Disabled Facilities Grant,REN01,Capital Grants,5014,634.62,Orbit Group Limited,101414,10/04/2014,10200291
INSERTED DETAIL,Capital Programme ,Disabled Facilities Grant,REN01,Capital Grants,5014,1137.90,Orbit Group Limited,101414,10/04/2014,10200294
INSERTED DETAIL,Capital Programme ,Disabled Facilities Grant,REN01,Capital Grants,5014,529.59,Orbit Group Limited,101414,10/04/2014,10200295
INSERTED DETAIL,Capital Programme ,Disabled Facilities Grant,REN01,Capital Grants,5014,849.66,Orbit Group Limited,101414,10/04/2014,10200297
INSERTED DETAIL,Capital Programme ,Disabled Facilities Grant,REN01,Capital Grants,5014,569.73,Orbit Group Limited,101414,10/04/2014,10200298
INSERTED DETAIL,Resources & Corporate Governance,Central Business Support Services,CSS15,External Printing,0352,508.00,Polycopy,101428,24/04/2014,10201196
INSERTED DETAIL,Sustainable Environment ,Grass Cutting,PKS13,External Contractor & Operator,0742,2245.00,Princethorpe Parish Council,101433,24/04/2014,10201254
INSERTED DETAIL,Sustainable Inclusive Communities,Sewage Disposal Plant,SDP00,R&M External Contractors,0100,3313.40,PJT Pumping Services,101438,17/04/2014,10197312
INSERTED DETAIL,Sustainable Inclusive Communities,Sewage Disposal Plant,SDP00,R&M External Contractors,0100,560.00,PJT Pumping Services,101438,03/04/2014,10200057
INSERTED DETAIL,Sustainable Environment ,Parks,PKS00,R&M External Contractors,0100,512.52,PJT Pumping Services,101438,17/04/2014,10201029
INSERTED DETAIL,Sustainable Inclusive Communities,Sewage Disposal Plant,SDP00,R&M External Contractors,0100,520.28,PJT Pumping Services,101438,17/04/2014,10201030
INSERTED DETAIL,Resources & Corporate Governance,Central Business Support Services,CSS15,Photocopying,0354,842.91,Xerox (UK) Ltd,101502,10/04/2014,10200763
INSERTED DETAIL,Resources & Corporate Governance,Central Business Support Services,CSS15,Photocopying,0354,2723.27,Xerox (UK) Ltd,101502,10/04/2014,10200764
INSERTED DETAIL,Resources & Corporate Governance,Central Business Support Services,CSS15,Photocopying,0354,635.16,Xerox (UK) Ltd,101502,10/04/2014,10200767
INSERTED DETAIL,Resources & Corporate Governance,Central Business Support Services,CSS15,Photocopying,0354,492.68,Xerox (UK) Ltd,101502,17/04/2014,10200908
INSERTED DETAIL,Sustainable Inclusive Communities,Woodside Park,TVR00,Rates,0141,506.33,Rugby Borough Council,101516,03/04/2014,10200203
INSERTED DETAIL,Resources & Corporate Governance ,Corporate Property Management,CPM00,Rates,0141,918.45,Rugby Borough Council,101516,03/04/2014,10200204
INSERTED DETAIL,Sustainable Environment ,Cemeteries General,CEM00,Rates,0141,1460.10,Rugby Borough Council,101516,03/04/2014,10200205
INSERTED DETAIL,Sustainable Environment ,Cemeteries General,CEM00,Rates,0141,1000.88,Rugby Borough Council,101516,03/04/2014,10200206
INSERTED DETAIL,Sustainable Environment ,Cemeteries General,CEM00,Rates,0141,1719.15,Rugby Borough Council,101516,03/04/2014,10200207
INSERTED DETAIL,Sustainable Environment ,Cemeteries General,CEM00,Rates,0141,1884.00,Rugby Borough Council,101516,03/04/2014,10200208
INSERTED DETAIL,Economy Development & Culture,Car Parks General,CPK01,Rates,0141,11568.00,Rugby Borough Council,101516,03/04/2014,10200209
INSERTED DETAIL,Economy Development & Culture,Car Parks General,CPK01,Rates,0141,965.55,Rugby Borough Council,101516,03/04/2014,10200210
INSERTED DETAIL,Economy Development & Culture,Car Parks General,CPK01,Rates,0141,4827.75,Rugby Borough Council,101516,03/04/2014,10200211
INSERTED DETAIL,Economy Development & Culture,Car Parks General,CPK01,Rates,0141,5534.25,Rugby Borough Council,101516,03/04/2014,10200212
INSERTED DETAIL,Economy Development & Culture,Car Parks General,CPK01,Rates,0141,20244.00,Rugby Borough Council,101516,03/04/2014,10200213
INSERTED DETAIL,Economy Development & Culture,Car Parks General,CPK01,Rates,0141,24823.00,Rugby Borough Council,101516,03/04/2014,10200214
INSERTED DETAIL,Economy Development & Culture,Car Parks General,CPK01,Rates,0141,3297.00,Rugby Borough Council,101516,03/04/2014,10200215
INSERTED DETAIL,Economy Development & Culture,Car Parks General,CPK01,Rates,0141,3155.70,Rugby Borough Council,101516,03/04/2014,10200216
INSERTED DETAIL,Economy Development & Culture,Car Parks General,CPK01,Rates,0141,3108.60,Rugby Borough Council,101516,03/04/2014,10200217
INSERTED DETAIL,Resources & Corporate Governance ,Town Hall,OFF00,Rates,0141,120500.00,Rugby Borough Council,101516,03/04/2014,10200219
INSERTED DETAIL,Economy Development & Culture,Town Centre Public Conveniences,PCS00,Rates,0141,4710.00,Rugby Borough Council,101516,03/04/2014,10200220
INSERTED DETAIL,Economy Development & Culture,Art Gallery and Museum,AGM00,Rates,0141,111824.00,Rugby Borough Council,101516,10/04/2014,10200221
INSERTED DETAIL,Sustainable Environment ,Parks,PKS00,Rates,0141,6358.50,Rugby Borough Council,101516,03/04/2014,10200222
INSERTED DETAIL,Economy Development & Culture,The Benn Hall,BHL00,Rates,0141,17834.00,Rugby Borough Council,101516,03/04/2014,10200224
INSERTED DETAIL,Sustainable Environment ,Parks,PKS00,Rates,0141,5652.00,Rugby Borough Council,101516,03/04/2014,10200225
INSERTED DETAIL,Resources & Corporate Governance ,Town Hall,OFF00,Internal Contractor,0743,4922.42,Rugby Borough Council,101516,24/04/2014,10201042
INSERTED DETAIL,Housing Revenue Account ,Property Maintenance,MAN23,Agency Staff,0003,469.44,Rugby Recruitment Services Ltd,101521,17/04/2014,10200880
INSERTED DETAIL,Economy Development & Culture,Art Gallery and Museum,AGM00,Postage & Distribution,0370,4.52,Royal Mail,101554,03/04/2014,10199985
INSERTED DETAIL,Economy Development & Culture,Building Control Services,BCS00,Postage & Distribution,0370,0.49,Royal Mail,101554,03/04/2014,10199985
INSERTED DETAIL,Economy Development & Culture,Building Control Services Non-Fee Earning Account,BCS01,Postage & Distribution,0370,0.49,Royal Mail,101554,03/04/2014,10199985
INSERTED DETAIL,Economy Development & Culture,Building Regulation Fee Earning Account,BCS99,Postage & Distribution,0370,8.89,Royal Mail,101554,03/04/2014,10199985
INSERTED DETAIL,Economy Development & Culture,Car Parks General,CPK01,Postage & Distribution,0370,29.42,Royal Mail,101554,03/04/2014,10199985
INSERTED DETAIL,Resources & Corporate Governance,Central Business Support Services,CSS15,Postage & Distribution,0370,314.35,Royal Mail,101554,03/04/2014,10199985
INSERTED DETAIL,Resources & Corporate Governance ,Council Tax and NNDR Collection,CTX01,Postage & Distribution,0370,219.60,Royal Mail,101554,03/04/2014,10199985
INSERTED DETAIL,Economy Development & Culture,Decrim. of Car Parking on street parking,DPE02,Postage & Distribution,0370,117.70,Royal Mail,101554,03/04/2014,10199985
INSERTED DETAIL,Resources & Corporate Governance ,Electoral Registration,ERG00,Postage & Distribution,0370,58.36,Royal Mail,101554,03/04/2014,10199985
INSERTED DETAIL,Sustainable Inclusive Communities,Housing Benefit Administration,HBA00,Postage & Distribution,0370,142.37,Royal Mail,101554,03/04/2014,10199985
INSERTED DETAIL,Housing Revenue Account ,Supervision and Management General,MAN00,Postage & Distribution,0370,1846.15,Royal Mail,101554,03/04/2014,10199985
INSERTED DETAIL,Economy Development & Culture,Planning General/Income,PLN00,Postage & Distribution,0370,270.86,Royal Mail,101554,03/04/2014,10199985
INSERTED DETAIL,Economy Development & Culture,Visitor Centre,VSC00,Postage & Distribution,0370,2.70,Royal Mail,101554,03/04/2014,10199985
INSERTED DETAIL,Resources & Corporate Governance ,General Administration,WAD00,Postage & Distribution,0370,29.14,Royal Mail,101554,03/04/2014,10199985
INSERTED DETAIL,Resources & Corporate Governance,Corporate Property Central Utilities,CPA02,Water Services,0143,2812.16,Severn Trent Water Ltd,101610,10/04/2014,10200619
INSERTED DETAIL,Capital Programme ,Disabled Facilities Grant,REN01,Capital Grants,5014,5248.00,Stannah Stairlifts Ltd,101623,17/04/2014,10200881
INSERTED DETAIL,Housing Revenue Account ,Unplanned Maintenance and Repair,UMR00,R&M External Contractors,0100,895.00,Stannah Stairlifts Ltd,101623,17/04/2014,10200912
INSERTED DETAIL,Housing Revenue Account ,Unplanned Maintenance and Repair,UMR00,R&M External Contractors,0100,1256.00,Steve Diston Contract Flooring,101668,17/04/2014,10200917
INSERTED DETAIL,Resources & Corporate Governance,Corporate Property R&M,CPA01,R&M External Contractors,0100,2340.00,Secom Plc,101671,03/04/2014,10200304
INSERTED DETAIL,Resources & Corporate Governance,Corporate Property R&M,CPA01,R&M External Contractors,0100,1612.00,Secom Plc,101671,03/04/2014,10200305
INSERTED DETAIL,Resources & Corporate Governance,Corporate Property R&M,CPA01,R&M External Contractors,0100,1185.00,Secom Plc,101671,03/04/2014,10200306
INSERTED DETAIL,Resources & Corporate Governance,Corporate Property R&M,CPA01,R&M External Contractors,0100,657.00,Secom Plc,101671,03/04/2014,10200307
INSERTED DETAIL,Resources & Corporate Governance,Housing Maintenance,WHM00,Materials,0303,4674.49,Travis Perkins Trading Co Ltd,101732,03/04/2014,10198913
INSERTED DETAIL,Resources & Corporate Governance,Housing Maintenance,WHM00,Materials,0303,3524.91,Travis Perkins Trading Co Ltd,101732,10/04/2014,10199385
INSERTED DETAIL,Resources & Corporate Governance,Housing Maintenance,WHM00,Materials,0303,7265.43,Travis Perkins Trading Co Ltd,101732,17/04/2014,10199713
INSERTED DETAIL,Resources & Corporate Governance,Housing Maintenance,WHM00,Materials,0303,2782.48,Travis Perkins Trading Co Ltd,101732,17/04/2014,10200244
INSERTED DETAIL,Resources & Corporate Governance,Housing Maintenance,WHM00,Materials,0303,554.05,Travis Perkins Trading Co Ltd,101732,24/04/2014,10200688
INSERTED DETAIL,Economy Development & Culture,Sports and Recreation,LSD03,Vehicle Running Costs,0201,53.69,HI-Q Motorway,101736,03/04/2014,10200314
INSERTED DETAIL,Resources & Corporate Governance ,Highways,WHG00,Vehicle Running Costs,0201,271.91,HI-Q Motorway,101736,03/04/2014,10200314
INSERTED DETAIL,Resources & Corporate Governance ,Street Cleansing,WSC00,Vehicle Running Costs,0201,66.85,HI-Q Motorway,101736,03/04/2014,10200314
INSERTED DETAIL,Resources & Corporate Governance ,Trade Waste Collection,WWC01,Vehicle Running Costs,0201,396.00,HI-Q Motorway,101736,03/04/2014,10200314
INSERTED DETAIL,Resources & Corporate Governance ,Garage Internal,WVR01,Materials,0303,428.00,HI-Q Motorway,101736,10/04/2014,10200597
INSERTED DETAIL,Sustainable Environment,Crematorium,CRM00,New Equipment,0300,468.61,Tudor Environmental,101743,03/04/2014,10200154
INSERTED DETAIL,Sustainable Environment ,Parks,PKS00,New Equipment,0300,912.00,Tudor Environmental,101743,24/04/2014,10200837
INSERTED DETAIL,Sustainable Environment ,Parks,PKS00,External Contractor & Operator,0742,639.00,Willoughby Parish Council,101848,10/04/2014,10200414
INSERTED DETAIL,Sustainable Environment ,Grass Cutting,PKS13,External Contractor & Operator,0742,4875.00,Wolston Parish Council,101852,24/04/2014,10200873
INSERTED DETAIL,Resources & Corporate Governance ,Grounds Maintenance,WGM00,Training fees,0011,850.00,Warwickshire College,101882,03/04/2014,10200048
INSERTED DETAIL,Resources & Corporate Governance ,"Communications, Consultation and Information Team",BTR20,Payments to Other Local Authorities,0710,2500.00,Warwickshire County Council,101893,17/04/2014,10199501
INSERTED DETAIL,CSW Superfast Broadband,CSW Superfast Broadband,RBB00,Capital Contract Payments,5000,6108.81,Warwickshire County Council,101893,10/04/2014,10200418
INSERTED DETAIL,Resources & Corporate Governance,Customer Support Services,CSS00,External Contractor & Operator,0742,700.00,Warwickshire County Council,101893,03/04/2014,10200494
INSERTED DETAIL,Sustainable Environment ,Crime and Disorder Activities,CAD00,Payments to Other Local Authorities,0710,876.00,Warwickshire County Council,101893,17/04/2014,10200899
INSERTED DETAIL,Capital Programme ,Disabled Facilities Grant,REN01,Capital Grants,5014,823.00,"Progress Windows, Roofline & Conservatories Ltd",101917,10/04/2014,10200720
INSERTED DETAIL,Capital Programme ,Electric to Gas Conversions,HIM04,Capital Contract Payments,5000,7786.38,Adroit Services Ltd,101939,03/04/2014,10200319
INSERTED DETAIL,Housing Revenue Account ,Unplanned Maintenance and Repair,UMR00,R&M External Contractors,0100,668.90,Adroit Services Ltd,101939,03/04/2014,10200326
INSERTED DETAIL,Capital Programme ,Electric to Gas Conversions,HIM04,Capital Contract Payments,5000,2022.81,Adroit Services Ltd,101939,03/04/2014,10200327
INSERTED DETAIL,Capital Programme ,Electric to Gas Conversions,HIM04,Capital Contract Payments,5000,5336.38,Adroit Services Ltd,101939,10/04/2014,10200398
INSERTED DETAIL,Housing Revenue Account ,Unplanned Maintenance and Repair,UMR00,R&M External Contractors,0100,267.56,Adroit Services Ltd,101939,03/04/2014,10200454
INSERTED DETAIL,Capital Programme ,Electric to Gas Conversions,HIM04,Capital Contract Payments,5000,870.59,Adroit Services Ltd,101939,03/04/2014,10200454
INSERTED DETAIL,Housing Revenue Account ,Unplanned Maintenance and Repair,UMR00,R&M External Contractors,0100,133.78,Adroit Services Ltd,101939,17/04/2014,10201033
INSERTED DETAIL,Capital Programme ,Electric to Gas Conversions,HIM04,Capital Contract Payments,5000,965.97,Adroit Services Ltd,101939,17/04/2014,10201033
INSERTED DETAIL,Housing Revenue Account ,Unplanned Maintenance and Repair,UMR00,R&M External Contractors,0100,1227.91,Adroit Services Ltd,101939,24/04/2014,10201168
INSERTED DETAIL,Capital Programme ,Electric to Gas Conversions,HIM04,Capital Contract Payments,5000,105.00,Adroit Services Ltd,101939,24/04/2014,10201168
INSERTED DETAIL,Resources & Corporate Governance ,Grounds Maintenance,WGM00,Contract Hire,0220,739.99,TJS Self Drive Rugby,107992,03/04/2014,10200465
INSERTED DETAIL,Resources & Corporate Governance ,Change Team,BTR50,Payments to Other Local Authorities,0710,19566.50,Nuneaton & Bedworth Borough Council,108060,10/04/2014,10200532
INSERTED DETAIL,Resources & Corporate Governance ,Human Resources,RES30,Payments to Other Local Authorities,0710,4257.47,Nuneaton & Bedworth Borough Council,108060,17/04/2014,10201026
INSERTED DETAIL,Resources & Corporate Governance ,General Financial Services,GFS00,External Contractor & Operator,0742,1506.85,Sterling International Brokers Ltd,108141,10/04/2014,10200737
INSERTED DETAIL,Resources & Corporate Governance ,Central Telephone Service,TEL00,Telephone Expenses,0371,1017.08,British Telecommunications PLC,108425,03/04/2014,10199808
INSERTED DETAIL,Housing Revenue Account ,Pettiver Crescent I AP,AGP10,New Equipment,0300,68.23,Dunelm (Soft Furnishings) Ltd,108730,17/04/2014,10200791
INSERTED DETAIL,Housing Revenue Account ,Tanser Court AP,AGP17,New Equipment,0300,362.03,Dunelm (Soft Furnishings) Ltd,108730,17/04/2014,10200791
INSERTED DETAIL,Capital Programme ,Crematorium Project,BUR04,Capital Contract Payments,5000,220441.74,Daventry District Council,108940,03/04/2014,10200425
INSERTED DETAIL,Capital Programme ,Crematorium Project,BUR04,Miscellaneous Capital Expenditure,5020,37874.09,Daventry District Council,108940,03/04/2014,10200425
INSERTED DETAIL,Capital Programme ,Crematorium Project,BUR04,Capital Contract Payments,5000,16787.46,Daventry District Council,108940,03/04/2014,10200426
INSERTED DETAIL,Capital Programme ,Crematorium Project,BUR04,Miscellaneous Capital Expenditure,5020,6434.51,Daventry District Council,108940,03/04/2014,10200426
INSERTED DETAIL,Sustainable Environment,Regulatory Services,REG00,Materials,0303,860.97,Killgerm Chemicals Ltd,109161,10/04/2014,10200630
INSERTED DETAIL,Sustainable Inclusive Communities,Woodside Park,TVR00,Other Agencies,0734,1026.00,Environment Agency,109492,17/04/2014,10201028
INSERTED DETAIL,Sustainable Environment ,Parks,PKS00,Contract Cleaning,0170,576.25,1ST CLASS HYGIENE LTD,110029,10/04/2014,10200441
INSERTED DETAIL,Resources & Corporate Governance ,Garage Internal,WVR01,Materials,0303,21590.00,Watson Petroleum,110361,03/04/2014,10200309
INSERTED DETAIL,Sustainable Environment ,Cemeteries General,CEM00,R&M External Contractors,0100,900.00,P D Timms,111508,10/04/2014,10200522
INSERTED DETAIL,Housing Revenue Account ,Unplanned Maintenance and Repair,UMR00,R&M External Contractors,0100,1138.00,Dampco,111839,10/04/2014,10198259
INSERTED DETAIL,Housing Revenue Account ,Unplanned Maintenance and Repair,UMR00,R&M External Contractors,0100,762.00,Dampco,111839,10/04/2014,10200657
INSERTED DETAIL,Resources & Corporate Governance ,Grounds Maintenance,WGM00,External Contractor & Operator,0742,5982.91,Mark Smithers,112612,03/04/2014,10200150
INSERTED DETAIL,Resources & Corporate Governance ,Grounds Maintenance,WGM00,External Contractor & Operator,0742,4591.80,Mark Smithers,112612,03/04/2014,10200152
INSERTED DETAIL,Resources & Corporate Governance ,Maintenance of Customer Services Systems,CIS21,Software Maintenance,0374,875.00,Civica UK Ltd,112724,03/04/2014,10195585
INSERTED DETAIL,Sustainable Environment,Crematorium,CRM00,Tools,0304,895.00,Overton (UK) Limited,113940,24/04/2014,10200831
INSERTED DETAIL,Housing Revenue Account ,Unplanned Maintenance and Repair,UMR00,R&M External Contractors,0100,1291.30,Temple Lifts Ltd,114738,10/04/2014,10200616
INSERTED DETAIL,Capital Programme ,Crematorium Project,BUR04,Capital Contract Payments,5000,2790.00,Streetmaster (South Wales) Ltd,114898,10/04/2014,10198943
INSERTED DETAIL,Sustainable Inclusive Communities,CL Grants,CGS00,Grants To Voluntary Organisations,0720,5500.00,Newbold on Avon Rugby Football Club,115674,10/04/2014,10200541
INSERTED DETAIL,Resources & Corporate Governance,Housing Maintenance,WHM00,Contract Hire,0220,430.71,Brandon Tool Hire,118489,03/04/2014,10198923
INSERTED DETAIL,Resources & Corporate Governance,Corporate Property Central Utilities,CPA02,Electricity,0130,8310.24,Southern Electric,118976,17/04/2014,10200856
INSERTED DETAIL,Sustainable Environment,Crematorium,CRM00,Electricity,0130,1231.45,Southern Electric,118976,17/04/2014,10200856
INSERTED DETAIL,Housing Revenue Account ,Unplanned Maintenance and Repair,UMR00,R&M External Contractors,0100,344.00,Pro-Tec Security Systems,119999,03/04/2014,10200325
INSERTED DETAIL,Capital Programme ,Disabled Adaptations,HCR01,Capital Contract Payments,5000,340.00,Pro-Tec Security Systems,119999,03/04/2014,10200325
INSERTED DETAIL,Housing Revenue Account ,Unplanned Maintenance and Repair,UMR00,R&M External Contractors,0100,280.36,Pro-Tec Security Systems,119999,10/04/2014,10200830
INSERTED DETAIL,Housing Revenue Account ,Frederick Press Way AP,AGP06,New Equipment,0300,533.50,Pro-Tec Security Systems,119999,10/04/2014,10200830
INSERTED DETAIL,Resources & Corporate Governance ,Toilet Cleaning,WBC01,Agency Staff,0003,446.20,G Staff,120173,03/04/2014,10200153
INSERTED DETAIL,Resources & Corporate Governance ,Street Cleansing,WSC00,Agency Staff,0003,696.78,G Staff,120173,03/04/2014,10200153
INSERTED DETAIL,Resources & Corporate Governance ,Domestic Waste Collection,WWC00,Agency Staff,0003,415.14,G Staff,120173,03/04/2014,10200153
INSERTED DETAIL,Resources & Corporate Governance ,Toilet Cleaning,WBC01,Agency Staff,0003,547.00,G Staff,120173,10/04/2014,10200581
INSERTED DETAIL,Resources & Corporate Governance ,Street Cleansing,WSC00,Agency Staff,0003,439.02,G Staff,120173,10/04/2014,10200581
INSERTED DETAIL,Resources & Corporate Governance ,Domestic Waste Collection,WWC00,Agency Staff,0003,743.02,G Staff,120173,10/04/2014,10200581
INSERTED DETAIL,Resources & Corporate Governance ,Toilet Cleaning,WBC01,Agency Staff,0003,403.20,G Staff,120173,24/04/2014,10200994
INSERTED DETAIL,Resources & Corporate Governance ,Street Cleansing,WSC00,Agency Staff,0003,328.32,G Staff,120173,24/04/2014,10200994
INSERTED DETAIL,Resources & Corporate Governance ,Domestic Waste Collection,WWC00,Agency Staff,0003,330.99,G Staff,120173,24/04/2014,10200994
INSERTED DETAIL,Sustainable Inclusive Communities,Housing Options Team,HOT00,Agency Staff,0003,634.50,Venn Group Recruitment Solutions,121594,03/04/2014,10200198
INSERTED DETAIL,Sustainable Inclusive Communities,Housing Options Team,HOT00,Agency Staff,0003,1092.28,Venn Group Recruitment Solutions,121594,03/04/2014,10200200
INSERTED DETAIL,Sustainable Inclusive Communities,Housing Options Team,HOT00,Agency Staff,0003,603.00,Venn Group Recruitment Solutions,121594,10/04/2014,10200562
INSERTED DETAIL,Sustainable Inclusive Communities,Housing Options Team,HOT00,Agency Staff,0003,1026.48,Venn Group Recruitment Solutions,121594,10/04/2014,10200563
INSERTED DETAIL,Sustainable Inclusive Communities,Housing Options Team,HOT00,Agency Staff,0003,540.00,Venn Group Recruitment Solutions,121594,17/04/2014,10200903
INSERTED DETAIL,Sustainable Inclusive Communities,Housing Options Team,HOT00,Agency Staff,0003,1092.00,Venn Group Recruitment Solutions,121594,17/04/2014,10200904
INSERTED DETAIL,Sustainable Inclusive Communities,Housing Options Team,HOT00,Agency Staff,0003,1036.00,Venn Group Recruitment Solutions,121594,24/04/2014,10201152
INSERTED DETAIL,Sustainable Inclusive Communities,Housing Options Team,HOT00,Agency Staff,0003,666.00,Venn Group Recruitment Solutions,121594,24/04/2014,10201154
INSERTED DETAIL,Resources & Corporate Governance ,Maintenance of Customer Services Systems,CIS21,Software Maintenance,0374,1300.00,Northgate Information Solutions UK Ltd,121606,03/04/2014,10200061
INSERTED DETAIL,Resources & Corporate Governance ,Maintenance of Customer Services Systems,CIS21,Software Maintenance,0374,798.38,Gower Consultants Ltd,121747,03/04/2014,10200318
INSERTED DETAIL,Resources & Corporate Governance ,Maintenance of Customer Services Systems,CIS21,Software Maintenance,0374,1815.88,Gower Consultants Ltd,121747,03/04/2014,10200320
INSERTED DETAIL,Sustainable Environment,Crematorium,CRM00,Software Maintenance,0374,845.68,Gower Consultants Ltd,121747,03/04/2014,10200321
INSERTED DETAIL,Sustainable Environment,Crematorium,CRM00,Software Maintenance,0374,1923.46,Gower Consultants Ltd,121747,03/04/2014,10200322
INSERTED DETAIL,Capital Programme ,Crematorium Project,BUR04,IT Capital Expenditure,5025,4105.00,Gower Consultants Ltd,121747,03/04/2014,10200323
INSERTED DETAIL,Sustainable Environment,Crematorium,CRM00,Software Maintenance,0374,1400.00,Gower Consultants Ltd,121747,03/04/2014,10200324
INSERTED DETAIL,Resources & Corporate Governance ,"Communications, Consultation and Information Team",BTR20,Publicity & Marketing,0377,525.00,Janus Kreative,121748,10/04/2014,10200613
INSERTED DETAIL,Resources & Corporate Governance ,Change Team,BTR50,Software Maintenance,0374,1500.00,Covalent Software Limited,122520,03/04/2014,10200183
INSERTED DETAIL,Housing Revenue Account ,Supervision and Management General,MAN00,New Equipment,0300,4995.00,Campbell Associates Ltd,122920,03/04/2014,10200233
INSERTED DETAIL,Resources & Corporate Governance ,Garage Internal,WVR01,Materials,0303,673.84,Fueltek Ltd,123134,24/04/2014,10200586
INSERTED DETAIL,Resources & Corporate Governance ,Customer and Information Strategy,CIS10,Hardware Maintenance,0376,2588.26,Cable & Wireless/T/A Vodafone,123224,10/04/2014,10200565
INSERTED DETAIL,Resources & Corporate Governance ,Central Telephone Service,TEL00,Telephone Expenses,0371,1371.44,Cable & Wireless/T/A Vodafone,123224,17/04/2014,10200736
INSERTED DETAIL,Resources & Corporate Governance ,"Communications, Consultation and Information Team",BTR20,Publicity & Marketing,0377,585.00,Krishna Enterprises Ltd,123590,24/04/2014,10200966
INSERTED DETAIL,Resources & Corporate Governance,Corporate Property R&M,CPA01,R&M External Contractors,0100,535.61,Utilitycom Ltd,124856,10/04/2014,10200534
INSERTED DETAIL,Resources & Corporate Governance ,Garage Internal,WVR01,Materials,0303,438.70,Shell U.K. Oil Products Limited,125672,24/04/2014,10200932
INSERTED DETAIL,Capital Programme ,Purchase of Vehicles,VHC00,Miscellaneous Capital Expenditure,5020,11320.00,Guest Trucks,126437,03/04/2014,10200077
INSERTED DETAIL,Capital Programme ,Crematorium Project,BUR04,Personal Protective Clothing,0340,646.65,Lyn Oakes Traditional Clothing,126450,03/04/2014,10200411
INSERTED DETAIL,Resources & Corporate Governance,Housing Maintenance,WHM00,External Contractor & Operator,0742,575.00,M P Hudson & Son,129334,03/04/2014,10200437
INSERTED DETAIL,Resources & Corporate Governance,Housing Maintenance,WHM00,External Contractor & Operator,0742,735.00,M P Hudson & Son,129334,10/04/2014,10200746
INSERTED DETAIL,Resources & Corporate Governance,Housing Maintenance,WHM00,External Contractor & Operator,0742,520.00,M P Hudson & Son,129334,24/04/2014,10201144
INSERTED DETAIL,Resources & Corporate Governance ,IT Procurement,CMP00,IT Capital Expenditure,5025,3485.00,Corporate Direct (Europe) Ltd,129644,03/04/2014,10200292
INSERTED DETAIL,Resources & Corporate Governance ,IT Procurement,CMP00,IT Capital Expenditure,5025,2385.00,Corporate Direct (Europe) Ltd,129644,17/04/2014,10200303
INSERTED DETAIL,Sustainable Environment,Crematorium,CRM00,Cleaning Materials,0171,11.64,Lyreco,129956,10/04/2014,10200604
INSERTED DETAIL,Sustainable Environment,Crematorium,CRM00,New Equipment,0300,907.96,Lyreco,129956,10/04/2014,10200604
INSERTED DETAIL,Sustainable Environment,Crematorium,CRM00,Personal Protective Clothing,0340,16.38,Lyreco,129956,10/04/2014,10200604
INSERTED DETAIL,Sustainable Environment,Crematorium,CRM00,Stationery Supplies,0350,48.71,Lyreco,129956,10/04/2014,10200604
INSERTED DETAIL,Sustainable Environment ,Parks,PKS00,External Contractor & Operator,0742,1404.00,I D Welding & Fabrications,131407,03/04/2014,10199770
INSERTED DETAIL,Capital Programme ,Open Spaces Refurbishment,LEI08,Capital Contract Payments,5000,11695.00,Sutcliffe Play Ltd,131511,03/04/2014,10198834
INSERTED DETAIL,Economy Development & Culture,Car Parks General,CPK01,Cash Collection,0744,1063.12,Jade Security Services Ltd,131711,10/04/2014,10200706
INSERTED DETAIL,Economy Development & Culture,Decrim. of Car Parking on street parking,DPE02,Cash Collection,0744,591.84,Jade Security Services Ltd,131711,10/04/2014,10200707
INSERTED DETAIL,Housing Revenue Account ,Unplanned Maintenance and Repair,UMR00,R&M External Contractors,0100,1081.05,Wilson Electrics,132051,17/04/2014,10200918
INSERTED DETAIL,Housing Revenue Account ,Unplanned Maintenance and Repair,UMR00,R&M External Contractors,0100,965.40,Wilson Electrics,132051,24/04/2014,10201167
INSERTED DETAIL,Resources & Corporate Governance ,Corporate Assurance,BTR40,External Contractor & Operator,0742,2100.00,HW Controls & Assurance,132240,24/04/2014,10201187
INSERTED DETAIL,Economy Development & Culture,Town Centre CCTV and Management,TVM00,Other Agencies,0734,20739.58,Rugby First Ltd - BID,133176,17/04/2014,10200900
INSERTED DETAIL,Resources & Corporate Governance ,Highways,WHG00,Materials,0303,571.73,Breedon Aggregates England Limited,133309,03/04/2014,10200310
INSERTED DETAIL,Sustainable Environment ,Parks,PKS00,Maintenance of Equipment,0301,4265.00,Easy-gate Ltd,133591,24/04/2014,10199835
INSERTED DETAIL,Capital Programme ,Woodland Creation Project,WCP00,Capital Contract Payments,5000,690.00,Easy-gate Ltd,133591,24/04/2014,10199835
INSERTED DETAIL,Sustainable Inclusive Communities,Housing Strategy & Enabling,HSE00,Conference & Seminar Fees,0401,725.00,Ocean Media Group Ltd,133594,17/04/2014,10200910
INSERTED DETAIL,Housing Revenue Account ,Sheltered Housing Team,MAN21,Conference & Seminar Fees,0401,815.00,Ocean Media Group Ltd,133594,24/04/2014,10201252
INSERTED DETAIL,Sustainable Inclusive Communities,Housing Options Team,HOT00,Agency Staff,0003,1056.98,Community Resourcing,133778,03/04/2014,10199685
INSERTED DETAIL,Sustainable Inclusive Communities,Housing Options Team,HOT00,Agency Staff,0003,1056.98,Community Resourcing,133778,03/04/2014,10200193
INSERTED DETAIL,Sustainable Inclusive Communities,Housing Options Team,HOT00,Agency Staff,0003,1069.87,Community Resourcing,133778,10/04/2014,10200518
INSERTED DETAIL,Sustainable Inclusive Communities,Housing Options Team,HOT00,Agency Staff,0003,850.74,Community Resourcing,133778,17/04/2014,10200905
INSERTED DETAIL,Sustainable Inclusive Communities,Housing Options Team,HOT00,Agency Staff,0003,1069.87,Community Resourcing,133778,24/04/2014,10201172
INSERTED DETAIL,Resources & Corporate Governance,Housing Maintenance,WHM00,External Contractor & Operator,0742,2811.68,Homecare Decorating,133884,03/04/2014,10200365
INSERTED DETAIL,Housing Revenue Account ,Unplanned Maintenance and Repair,UMR00,R&M External Contractors,0100,511.44,Sunfish Services Ltd,133886,03/04/2014,10200453
INSERTED DETAIL,Resources & Corporate Governance ,Human Resources Centralised Services,RES31,Training fees,0011,1800.00,Construction Study Centre,134737,03/04/2014,10200284
INSERTED DETAIL,Housing Revenue Account ,Avon Court AP,AGP02,Electricity,0130,2.50,Southern Electric,135653,17/04/2014,10200816
INSERTED DETAIL,Housing Revenue Account ,Dickinson Court AP,AGP03,Electricity,0130,839.55,Southern Electric,135653,17/04/2014,10200816
INSERTED DETAIL,Housing Revenue Account ,Frederick Press Way AP,AGP06,Electricity,0130,1565.26,Southern Electric,135653,17/04/2014,10200816
INSERTED DETAIL,Housing Revenue Account ,Mercer Court AP,AGP09,Electricity,0130,539.10,Southern Electric,135653,17/04/2014,10200816
INSERTED DETAIL,Housing Revenue Account ,Pettiver Crescent I AP,AGP10,Electricity,0130,1077.36,Southern Electric,135653,17/04/2014,10200816
INSERTED DETAIL,Housing Revenue Account ,Sun Street/Windsor Street AP,AGP14,Electricity,0130,1467.77,Southern Electric,135653,17/04/2014,10200816
INSERTED DETAIL,Housing Revenue Account ,Lesley Souter House AP,AGP16,Electricity,0130,1379.03,Southern Electric,135653,17/04/2014,10200816
INSERTED DETAIL,Housing Revenue Account ,Edward Court AP,AGP19,Electricity,0130,546.88,Southern Electric,135653,17/04/2014,10200816
INSERTED DETAIL,Housing Revenue Account ,Albert Square AP,AGP20,Electricity,0130,1331.24,Southern Electric,135653,17/04/2014,10200816
INSERTED DETAIL,Housing Revenue Account ,Clare Court Site,AGP27,Electricity,0130,102.89,Southern Electric,135653,17/04/2014,10200816
INSERTED DETAIL,Housing Revenue Account ,Alexandra/James Court AP,AGP30,Electricity,0130,349.50,Southern Electric,135653,17/04/2014,10200816
INSERTED DETAIL,Housing Revenue Account ,Clifton Road AP,AGP41,Electricity,0130,84.48,Southern Electric,135653,17/04/2014,10200816
INSERTED DETAIL,Housing Revenue Account ,Featherbed Lane I AP,AGP45,Electricity,0130,545.87,Southern Electric,135653,17/04/2014,10200816
INSERTED DETAIL,Housing Revenue Account ,Fox Close AP,AGP47,Electricity,0130,153.14,Southern Electric,135653,17/04/2014,10200816
INSERTED DETAIL,Housing Revenue Account ,Jackson Road I AP,AGP53,Electricity,0130,70.58,Southern Electric,135653,17/04/2014,10200816
INSERTED DETAIL,Housing Revenue Account ,Lever Road I AP,AGP57,Electricity,0130,479.47,Southern Electric,135653,17/04/2014,10200816
INSERTED DETAIL,Housing Revenue Account ,The Kent AP,AGP67,Electricity,0130,162.43,Southern Electric,135653,17/04/2014,10200816
INSERTED DETAIL,Housing Revenue Account ,Victoria Street/Lawford Road AP,AGP68,Electricity,0130,38.26,Southern Electric,135653,17/04/2014,10200816
INSERTED DETAIL,Housing Revenue Account ,Parkfield Road/Lea Crescent AP,AGP71,Electricity,0130,93.58,Southern Electric,135653,17/04/2014,10200816
INSERTED DETAIL,Housing Revenue Account ,Pennington Street/Round Street AP,AGP72,Electricity,0130,243.88,Southern Electric,135653,17/04/2014,10200816
INSERTED DETAIL,Housing Revenue Account ,Control Centre CCTV,CCE01,Electricity,0130,1186.53,Southern Electric,135653,17/04/2014,10200816
INSERTED DETAIL,Housing Revenue Account ,Supervision and Management General,MAN00,Electricity,0130,250.53,Southern Electric,135653,17/04/2014,10200816
INSERTED DETAIL,Housing Revenue Account ,Multi-Storey Flats,MSF00,Electricity,0130,7743.97,Southern Electric,135653,17/04/2014,10200816
INSERTED DETAIL,Economy Development & Culture,Car Parks General,CPK01,Training fees,0011,190.00,Westlake Management Consultants Ltd,136108,17/04/2014,10201039
INSERTED DETAIL,Economy Development & Culture,Decrim. of Car Parking on street parking,DPE02,Training fees,0011,760.00,Westlake Management Consultants Ltd,136108,17/04/2014,10201039
INSERTED DETAIL,Sustainable Inclusive Communities,Housing Strategy & Enabling,HSE00,Agency Staff,0003,815.03,Morgan Hunt UK Ltd,136143,03/04/2014,10200096
INSERTED DETAIL,Sustainable Inclusive Communities,Housing Strategy & Enabling,HSE00,Agency Staff,0003,672.81,Morgan Hunt UK Ltd,136143,10/04/2014,10200852
INSERTED DETAIL,Sustainable Inclusive Communities,Housing Strategy & Enabling,HSE00,Agency Staff,0003,782.21,Morgan Hunt UK Ltd,136143,17/04/2014,10200906
INSERTED DETAIL,Sustainable Inclusive Communities,Housing Strategy & Enabling,HSE00,Agency Staff,0003,596.23,Morgan Hunt UK Ltd,136143,24/04/2014,10201155
INSERTED DETAIL,Resources & Corporate Governance ,Council Tax and NNDR Collection,CTX01,External Legal Costs,0741,500.00,Summers Nigh Law,136330,03/04/2014,10200382
INSERTED DETAIL,Resources & Corporate Governance ,Council Tax and NNDR Collection,CTX01,External Legal Costs,0741,500.00,Summers Nigh Law,136330,03/04/2014,10200385
INSERTED DETAIL,Resources & Corporate Governance ,Council Tax and NNDR Collection,CTX01,External Legal Costs,0741,585.00,Summers Nigh Law,136330,03/04/2014,10200404
INSERTED DETAIL,Sustainable Environment ,Cemeteries General,CEM00,Training fees,0011,2245.00,The Federation of Burial and Cremation Authorities,137587,03/04/2014,10200413
INSERTED DETAIL,Resources & Corporate Governance ,"Communications, Consultation and Information Team",BTR20,Publicity & Marketing,0377,500.00,ProgrammeMaster Ltd,138019,24/04/2014,10201175
INSERTED DETAIL,Sustainable Inclusive Communities,CL Grants,CGS00,Grants To Voluntary Organisations,0720,5000.00,Bedworth Rugby & Nuneaton CAB,139552,10/04/2014,10200525
INSERTED DETAIL,Housing Revenue Account ,Asbestos Surveys,UMR05,R&M External Contractors,0100,615.00,Rider Levett Bucknall UK Ltd,139918,10/04/2014,10200624
INSERTED DETAIL,Housing Revenue Account ,Repairs and Maintenance - Void works,UMR09,R&M External Contractors,0100,260.00,Rider Levett Bucknall UK Ltd,139918,10/04/2014,10200624
INSERTED DETAIL,Housing Revenue Account ,Asbestos Surveys,UMR05,R&M External Contractors,0100,5330.00,Rider Levett Bucknall UK Ltd,139918,10/04/2014,10200625
INSERTED DETAIL,Economy Development & Culture,Planning General/Income,PLN00,Consultancy Costs,0740,1200.00,P Rhodes,140076,24/04/2014,10201264
INSERTED DETAIL,Resources & Corporate Governance ,Maintenance of Customer Services Systems,CIS21,Consultancy Costs,0740,930.21,Midland Software Ltd,140463,03/04/2014,10199491
INSERTED DETAIL,Housing Revenue Account ,Unplanned Maintenance and Repair,UMR00,R&M External Contractors,0100,582.60,Elite Sweep Service,141080,03/04/2014,10199927
INSERTED DETAIL,Resources & Corporate Governance ,IT Procurement,CMP00,IT Capital Expenditure,5025,1823.45,Enforce Technology Ltd,142074,03/04/2014,10199880
INSERTED DETAIL,Housing Revenue Account ,Gas Heating Systems,UMR01,R&M External Contractors,0100,780.00,Ascertiva Group Ltd,142076,10/04/2014,10200520
INSERTED DETAIL,Resources & Corporate Governance,Corporate Property R&M,CPA01,R&M External Contractors,0100,500.00,Healthmatic Limited,143256,03/04/2014,10200397
INSERTED DETAIL,Resources & Corporate Governance ,Electoral Registration,ERG00,New Equipment,0300,10182.18,Xpress Software Solutions Ltd,143411,03/04/2014,10200185
INSERTED DETAIL,Resources & Corporate Governance ,General Financial Services,GFS00,Subscriptions,0421,9422.86,Local Government Association,144471,24/04/2014,10201065
INSERTED DETAIL,Resources & Corporate Governance ,Land Charges,LCH00,External Legal Costs,0741,2308.08,Local Government Association,144471,24/04/2014,10201266
INSERTED DETAIL,Economy Development & Culture,Car Parks General,CPK01,Other Agencies,0734,237.49,PATROL,144963,10/04/2014,10200511
INSERTED DETAIL,Economy Development & Culture,Decrim. of Car Parking on street parking,DPE02,Other Agencies,0734,949.96,PATROL,144963,10/04/2014,10200511
INSERTED DETAIL,Housing Revenue Account ,Supervision and Management General,MAN00,Subscriptions,0421,2350.00,Association of Retained Council Housing Ltd,145015,17/04/2014,10200902
INSERTED DETAIL,Capital Programme ,Open Spaces Refurbishment,LEI08,Capital Contract Payments,5000,1936.30,Matta Products (UK),145081,24/04/2014,10200557
INSERTED DETAIL,Resources & Corporate Governance,Housing Maintenance,WHM00,Agency Staff,0003,1251.17,Blue Arrow Limited,145492,03/04/2014,10200439
INSERTED DETAIL,Resources & Corporate Governance ,Street Cleansing,WSC00,Agency Staff,0003,1625.76,Blue Arrow Limited,145492,03/04/2014,10200439
INSERTED DETAIL,Resources & Corporate Governance ,Domestic Waste Collection,WWC00,Agency Staff,0003,1181.52,Blue Arrow Limited,145492,03/04/2014,10200439
INSERTED DETAIL,Resources & Corporate Governance,Housing Maintenance,WHM00,Agency Staff,0003,1948.25,Blue Arrow Limited,145492,10/04/2014,10200812
INSERTED DETAIL,Resources & Corporate Governance ,Street Cleansing,WSC00,Agency Staff,0003,1157.47,Blue Arrow Limited,145492,10/04/2014,10200812
INSERTED DETAIL,Resources & Corporate Governance ,Domestic Waste Collection,WWC00,Agency Staff,0003,1870.71,Blue Arrow Limited,145492,10/04/2014,10200812
INSERTED DETAIL,Resources & Corporate Governance,Housing Maintenance,WHM00,Agency Staff,0003,1723.56,Blue Arrow Limited,145492,24/04/2014,10201084
INSERTED DETAIL,Resources & Corporate Governance ,Street Cleansing,WSC00,Agency Staff,0003,894.07,Blue Arrow Limited,145492,24/04/2014,10201084
INSERTED DETAIL,Resources & Corporate Governance ,Domestic Waste Collection,WWC00,Agency Staff,0003,1274.31,Blue Arrow Limited,145492,24/04/2014,10201084
INSERTED DETAIL,Resources & Corporate Governance ,General Financial Services,GFS00,External Contractor & Operator,0742,12260.00,Grant Thornton UK LLP,145501,03/04/2014,10200178
INSERTED DETAIL,Resources & Corporate Governance ,Highways,WHG00,Materials,0303,470.45,Midland Rock Leicester Ltd,145830,17/04/2014,10200543
INSERTED DETAIL,Capital Programme ,Disabled Facilities Grant,REN01,Capital Grants,5014,7597.00,Inhouse Renovations,145963,10/04/2014,10200721
INSERTED DETAIL,Capital Programme ,Disabled Facilities Grant,REN01,Capital Grants,5014,5851.00,Inhouse Renovations,145963,17/04/2014,10200882
INSERTED DETAIL,Resources & Corporate Governance ,General Financial Services,GFS00,External Contractor & Operator,0742,7500.00,Sector Treasury Services Ltd,145990,03/04/2014,10200346
INSERTED DETAIL,Resources & Corporate Governance ,Council Tax and NNDR Collection,CTX01,External Printing,0352,3558.02,PSC Systems Ltd,146087,24/04/2014,10201183
INSERTED DETAIL,Resources & Corporate Governance ,Council Tax and NNDR Collection,CTX01,Postage & Distribution,0370,7255.77,PSC Systems Ltd,146087,24/04/2014,10201183
INSERTED DETAIL,Resources & Corporate Governance ,Council Tax and NNDR Collection,CTX01,Stationery Supplies,0350,1163.40,PSC Systems Ltd,146087,24/04/2014,10201184
INSERTED DETAIL,Resources & Corporate Governance ,Council Tax and NNDR Collection,CTX01,External Printing,0352,1970.00,PSC Systems Ltd,146087,24/04/2014,10201186
INSERTED DETAIL,Resources & Corporate Governance ,Council Tax and NNDR Collection,CTX01,Postage & Distribution,0370,1902.43,PSC Systems Ltd,146087,24/04/2014,10201186
INSERTED DETAIL,Capital Programme ,Crematorium Project,BUR04,Capital Contract Payments,5000,1800.00,Larkin Engineering Enterprises LtdT/A Larkin Street Products,146442,03/04/2014,10200235
INSERTED DETAIL,Capital Programme ,Open Spaces Refurbishment,LEI08,Capital Contract Payments,5000,540.00,Larkin Engineering Enterprises LtdT/A Larkin Street Products,146442,03/04/2014,10200235
INSERTED DETAIL,Resources & Corporate Governance,Corporate Property R&M,CPA01,R&M External Contractors,0100,432.69,Stanair Industrial Services Ltd,146499,03/04/2014,10200283
INSERTED DETAIL,Resources & Corporate Governance,Housing Maintenance,WHM00,External Contractor & Operator,0742,995.00,Mick Brown Plastering,146699,03/04/2014,10200370
INSERTED DETAIL,Resources & Corporate Governance,Housing Maintenance,WHM00,External Contractor & Operator,0742,493.00,Mick Brown Plastering,146699,03/04/2014,10200374
INSERTED DETAIL,Resources & Corporate Governance,Housing Maintenance,WHM00,External Contractor & Operator,0742,1060.00,Mick Brown Plastering,146699,24/04/2014,10200941
INSERTED DETAIL,Economy Development & Culture,Building Control Services,BCS00,Postage & Distribution,0370,0.40,TNT Post Midlands Ltd,146983,03/04/2014,10199806
INSERTED DETAIL,Economy Development & Culture,Building Control Services Non-Fee Earning Account,BCS01,Postage & Distribution,0370,0.40,TNT Post Midlands Ltd,146983,03/04/2014,10199806
INSERTED DETAIL,Economy Development & Culture,Building Regulation Fee Earning Account,BCS99,Postage & Distribution,0370,7.12,TNT Post Midlands Ltd,146983,03/04/2014,10199806
INSERTED DETAIL,Resources & Corporate Governance,Central Business Support Services,CSS15,Postage & Distribution,0370,72.68,TNT Post Midlands Ltd,146983,03/04/2014,10199806
INSERTED DETAIL,Resources & Corporate Governance ,Council Tax and NNDR Collection,CTX01,Postage & Distribution,0370,539.64,TNT Post Midlands Ltd,146983,03/04/2014,10199806
INSERTED DETAIL,Resources & Corporate Governance ,Electoral Registration,ERG00,Postage & Distribution,0370,53.21,TNT Post Midlands Ltd,146983,03/04/2014,10199806
INSERTED DETAIL,Sustainable Inclusive Communities,Housing Benefit Administration,HBA00,Postage & Distribution,0370,1535.34,TNT Post Midlands Ltd,146983,03/04/2014,10199806
INSERTED DETAIL,Housing Revenue Account ,Supervision and Management General,MAN00,Postage & Distribution,0370,62.03,TNT Post Midlands Ltd,146983,03/04/2014,10199806
INSERTED DETAIL,Resources & Corporate Governance ,General Administration,WAD00,Postage & Distribution,0370,9.45,TNT Post Midlands Ltd,146983,03/04/2014,10199806
INSERTED DETAIL,Economy Development & Culture,Building Control Services,BCS00,Postage & Distribution,0370,0.24,TNT Post Midlands Ltd,146983,03/04/2014,10200164
INSERTED DETAIL,Economy Development & Culture,Building Control Services Non-Fee Earning Account,BCS01,Postage & Distribution,0370,0.24,TNT Post Midlands Ltd,146983,03/04/2014,10200164
INSERTED DETAIL,Economy Development & Culture,Building Regulation Fee Earning Account,BCS99,Postage & Distribution,0370,4.40,TNT Post Midlands Ltd,146983,03/04/2014,10200164
INSERTED DETAIL,Resources & Corporate Governance,Central Business Support Services,CSS15,Postage & Distribution,0370,26.63,TNT Post Midlands Ltd,146983,03/04/2014,10200164
INSERTED DETAIL,Resources & Corporate Governance ,Council Tax and NNDR Collection,CTX01,Postage & Distribution,0370,177.74,TNT Post Midlands Ltd,146983,03/04/2014,10200164
INSERTED DETAIL,Resources & Corporate Governance ,Electoral Registration,ERG00,Postage & Distribution,0370,1817.07,TNT Post Midlands Ltd,146983,03/04/2014,10200164
INSERTED DETAIL,Sustainable Inclusive Communities,Housing Benefit Administration,HBA00,Postage & Distribution,0370,138.06,TNT Post Midlands Ltd,146983,03/04/2014,10200164
INSERTED DETAIL,Housing Revenue Account ,Supervision and Management General,MAN00,Postage & Distribution,0370,64.14,TNT Post Midlands Ltd,146983,03/04/2014,10200164
INSERTED DETAIL,Resources & Corporate Governance ,General Administration,WAD00,Postage & Distribution,0370,7.61,TNT Post Midlands Ltd,146983,03/04/2014,10200164
INSERTED DETAIL,Economy Development & Culture,Art Gallery and Museum,AGM00,Postage & Distribution,0370,3.00,TNT Post Midlands Ltd,146983,24/04/2014,10200850
INSERTED DETAIL,Economy Development & Culture,Building Control Services,BCS00,Postage & Distribution,0370,0.12,TNT Post Midlands Ltd,146983,24/04/2014,10200850
INSERTED DETAIL,Economy Development & Culture,Building Control Services Non-Fee Earning Account,BCS01,Postage & Distribution,0370,0.12,TNT Post Midlands Ltd,146983,24/04/2014,10200850
INSERTED DETAIL,Economy Development & Culture,Building Regulation Fee Earning Account,BCS99,Postage & Distribution,0370,2.15,TNT Post Midlands Ltd,146983,24/04/2014,10200850
INSERTED DETAIL,Resources & Corporate Governance,Central Business Support Services,CSS15,Postage & Distribution,0370,24.76,TNT Post Midlands Ltd,146983,24/04/2014,10200850
INSERTED DETAIL,Resources & Corporate Governance ,Council Tax and NNDR Collection,CTX01,Postage & Distribution,0370,11.67,TNT Post Midlands Ltd,146983,24/04/2014,10200850
INSERTED DETAIL,Resources & Corporate Governance ,Electoral Registration,ERG00,Postage & Distribution,0370,3.44,TNT Post Midlands Ltd,146983,24/04/2014,10200850
INSERTED DETAIL,Sustainable Inclusive Communities,Housing Benefit Administration,HBA00,Postage & Distribution,0370,5.57,TNT Post Midlands Ltd,146983,24/04/2014,10200850
INSERTED DETAIL,Housing Revenue Account ,Supervision and Management General,MAN00,Postage & Distribution,0370,733.71,TNT Post Midlands Ltd,146983,24/04/2014,10200850
INSERTED DETAIL,Economy Development & Culture,Visitor Centre,VSC00,Postage & Distribution,0370,0.14,TNT Post Midlands Ltd,146983,24/04/2014,10200850
INSERTED DETAIL,Resources & Corporate Governance ,General Administration,WAD00,Postage & Distribution,0370,4.85,TNT Post Midlands Ltd,146983,24/04/2014,10200850
INSERTED DETAIL,Resources & Corporate Governance,Housing Maintenance,WHM00,External Contractor & Operator,0742,1105.00,Intelligent Disabled Solutions Ltd,147081,17/04/2014,10200566
INSERTED DETAIL,Resources & Corporate Governance,Housing Maintenance,WHM00,External Contractor & Operator,0742,3593.91,Intelligent Disabled Solutions Ltd,147081,17/04/2014,10200568
INSERTED DETAIL,Resources & Corporate Governance ,Domestic Waste Collection,WWC00,External Contractor & Operator,0742,450.00,James Baxter Haulage Ltd,147159,03/04/2014,10200405
INSERTED DETAIL,Resources & Corporate Governance ,Domestic Waste Collection,WWC00,External Contractor & Operator,0742,450.00,James Baxter Haulage Ltd,147159,10/04/2014,10200734
INSERTED DETAIL,Capital Programme ,Queen's Diamond Jubilee Leisure Centre Project,LEI03,Capital Contract Payments,5000,4000.00,B3 Architects,147190,03/04/2014,10200337
INSERTED DETAIL,Economy Development & Culture,The Benn Hall,BHL00,Contract Cleaning,0170,106.00,SJ Cleaning (Midlands) Ltd,147273,17/04/2014,10200482
INSERTED DETAIL,Sustainable Environment ,Cemeteries General,CEM00,Contract Cleaning,0170,12.00,SJ Cleaning (Midlands) Ltd,147273,17/04/2014,10200482
INSERTED DETAIL,Economy Development & Culture,James St. Multi-storey Car Park,CPK02,Contract Cleaning,0170,21.00,SJ Cleaning (Midlands) Ltd,147273,17/04/2014,10200482
INSERTED DETAIL,Resources & Corporate Governance ,Town Hall,OFF00,Contract Cleaning,0170,373.00,SJ Cleaning (Midlands) Ltd,147273,17/04/2014,10200482
INSERTED DETAIL,Economy Development & Culture,Town Centre Public Conveniences,PCS00,Contract Cleaning,0170,21.00,SJ Cleaning (Midlands) Ltd,147273,17/04/2014,10200482
INSERTED DETAIL,Sustainable Environment ,Parks,PKS00,Contract Cleaning,0170,41.00,SJ Cleaning (Midlands) Ltd,147273,17/04/2014,10200482
INSERTED DETAIL,Resources & Corporate Governance ,WSU Depot,WDP00,Contract Cleaning,0170,41.00,SJ Cleaning (Midlands) Ltd,147273,17/04/2014,10200482
INSERTED DETAIL,Capital Programme ,Electric to Gas Conversions,HIM04,Capital Contract Payments,5000,70000.00,Liberty Gas Group,147368,03/04/2014,10199846
INSERTED DETAIL,Capital Programme ,Electric to Gas Conversions,HIM04,Capital Contract Payments,5000,8400.00,Liberty Gas Group,147368,10/04/2014,10200524
INSERTED DETAIL,Capital Programme ,Electric to Gas Conversions,HIM04,Capital Contract Payments,5000,5953.40,Liberty Gas Group,147368,10/04/2014,10200542
INSERTED DETAIL,Capital Programme ,Electric to Gas Conversions,HIM04,Capital Contract Payments,5000,-1087.68,Liberty Gas Group,147368,10/04/2014,10200621
INSERTED DETAIL,Resources & Corporate Governance ,Domestic Waste Collection,WWC00,Contract Hire,0220,1405.00,Trash UK Limited,147379,03/04/2014,10199667
INSERTED DETAIL,Capital Programme ,Kitchen Modifications,HIK10,Capital Contract Payments,5000,7969.43,Rixonway Kitchens Ltd,147446,03/04/2014,10199233
INSERTED DETAIL,Resources & Corporate Governance,Housing Maintenance,WHM00,External Contractor & Operator,0742,1100.00,Longfield Tree & Hedge Care,147529,03/04/2014,10200455
INSERTED DETAIL,Resources & Corporate Governance ,General Financial Services,GFS00,Subscriptions,0421,2735.00,LG Futures Ltd,147641,03/04/2014,10200160
INSERTED DETAIL,Sustainable Environment,Regulatory Services,REG00,External Contractor & Operator,0742,2480.00,Environmental Scientifics Group,147697,10/04/2014,10199643
INSERTED DETAIL,Resources & Corporate Governance,Corporate Property R&M,CPA01,R&M External Contractors,0100,550.00,S R Turton Ltd,147729,03/04/2014,10200300
INSERTED DETAIL,Resources & Corporate Governance ,Grounds Maintenance,WGM00,Vehicle Repair and Maintenance,0200,810.06,Tallis Amos Group Limited,147758,03/04/2014,10200238
INSERTED DETAIL,Capital Programme ,Purchase of Vehicles,VHC00,Miscellaneous Capital Expenditure,5020,13335.00,Tallis Amos Group Limited,147758,10/04/2014,10200636
INSERTED DETAIL,Capital Programme ,Great Central Walk Bridge,LEI14,Capital Contract Payments,5000,11240.71,Currall Lewis & Martin (Construction) Ltd,147769,03/04/2014,10200161
INSERTED DETAIL,Capital Programme ,Viaduct Cycleways,CYC02,Capital Contract Payments,5000,30351.91,Currall Lewis & Martin (Construction) Ltd,147769,03/04/2014,10200179
INSERTED DETAIL,Capital Programme ,Great Central Walk Bridge,LEI14,Capital Contract Payments,5000,7211.11,Currall Lewis & Martin (Construction) Ltd,147769,03/04/2014,10200264
INSERTED DETAIL,Resources & Corporate Governance,Housing Maintenance,WHM00,External Contractor & Operator,0742,506.40,Coventry Garage Doors,147883,03/04/2014,10199905
INSERTED DETAIL,Resources & Corporate Governance,Housing Maintenance,WHM00,External Contractor & Operator,0742,506.40,Coventry Garage Doors,147883,10/04/2014,10200556
INSERTED DETAIL,Resources & Corporate Governance,Housing Maintenance,WHM00,External Contractor & Operator,0742,506.40,Coventry Garage Doors,147883,17/04/2014,10201016
INSERTED DETAIL,Economy Development & Culture,AGM Conservation/Documentation,AGM01,Other Miscellaneous Expenses,0444,1218.00,Sara Stoll,147942,10/04/2014,10200407
INSERTED DETAIL,Resources & Corporate Governance,Housing Maintenance,WHM00,External Contractor & Operator,0742,570.00,Dean Hudson,148035,10/04/2014,10200747
INSERTED DETAIL,Resources & Corporate Governance ,Human Resources Centralised Services,RES31,Training fees,0011,665.00,NEED British Sign Language,148077,03/04/2014,10200230
INSERTED DETAIL,Economy Development & Culture,Economic Development General,ECD00,Recruitment Expenses,0012,19.95,Team Prevent UK Ltd,148151,10/04/2014,10200245
INSERTED DETAIL,Housing Revenue Account ,Property Maintenance,MAN23,Recruitment Expenses,0012,39.90,Team Prevent UK Ltd,148151,10/04/2014,10200245
INSERTED DETAIL,Economy Development & Culture,Planning General/Income,PLN00,Recruitment Expenses,0012,19.95,Team Prevent UK Ltd,148151,10/04/2014,10200245
INSERTED DETAIL,Resources & Corporate Governance ,Human Resources Centralised Services,RES31,Recruitment Expenses,0012,19.95,Team Prevent UK Ltd,148151,10/04/2014,10200245
INSERTED DETAIL,Resources & Corporate Governance,Housing Maintenance,WHM00,Recruitment Expenses,0012,19.95,Team Prevent UK Ltd,148151,10/04/2014,10200245
INSERTED DETAIL,Housing Revenue Account ,Control Centre (HRA),CCE00,Employee wellbeing/Other employee expenses,0021,195.00,Team Prevent UK Ltd,148151,10/04/2014,10200245
INSERTED DETAIL,Economy Development & Culture,Economic Development General,ECD00,Employee wellbeing/Other employee expenses,0021,17.50,Team Prevent UK Ltd,148151,10/04/2014,10200245
INSERTED DETAIL,Sustainable Inclusive Communities,Housing Benefit Administration,HBA00,Employee wellbeing/Other employee expenses,0021,104.00,Team Prevent UK Ltd,148151,10/04/2014,10200245
INSERTED DETAIL,Resources & Corporate Governance ,Grounds Maintenance,WGM00,Employee wellbeing/Other employee expenses,0021,225.00,Team Prevent UK Ltd,148151,10/04/2014,10200245
INSERTED DETAIL,Resources & Corporate Governance ,TREE WORKS,WGM01,Employee wellbeing/Other employee expenses,0021,600.00,Team Prevent UK Ltd,148151,10/04/2014,10200245
INSERTED DETAIL,Resources & Corporate Governance,Housing Maintenance,WHM00,Employee wellbeing/Other employee expenses,0021,120.00,Team Prevent UK Ltd,148151,10/04/2014,10200245
INSERTED DETAIL,Resources & Corporate Governance ,Street Cleansing,WSC00,Employee wellbeing/Other employee expenses,0021,85.00,Team Prevent UK Ltd,148151,10/04/2014,10200245
INSERTED DETAIL,Resources & Corporate Governance,Apprenticeship Scheme,CSS25,Recruitment Expenses,0012,19.95,Team Prevent UK Ltd,148151,10/04/2014,10200827
INSERTED DETAIL,Economy Development & Culture,Positive Futures,LSD04,Recruitment Expenses,0012,19.95,Team Prevent UK Ltd,148151,10/04/2014,10200827
INSERTED DETAIL,Economy Development & Culture,Play Projects (revenue),LSD09,Recruitment Expenses,0012,39.90,Team Prevent UK Ltd,148151,10/04/2014,10200827
INSERTED DETAIL,Resources & Corporate Governance,Housing Maintenance,WHM00,Recruitment Expenses,0012,59.85,Team Prevent UK Ltd,148151,10/04/2014,10200827
INSERTED DETAIL,Resources & Corporate Governance ,Garage Salaries,WVR03,Recruitment Expenses,0012,19.95,Team Prevent UK Ltd,148151,10/04/2014,10200827
INSERTED DETAIL,Resources & Corporate Governance,Business Support Services,CSS10,Employee wellbeing/Other employee expenses,0021,104.00,Team Prevent UK Ltd,148151,10/04/2014,10200827
INSERTED DETAIL,Economy Development & Culture,Play Projects (revenue),LSD09,Employee wellbeing/Other employee expenses,0021,17.50,Team Prevent UK Ltd,148151,10/04/2014,10200827
INSERTED DETAIL,Housing Revenue Account ,Operations,MAN20,Employee wellbeing/Other employee expenses,0021,104.00,Team Prevent UK Ltd,148151,10/04/2014,10200827
INSERTED DETAIL,Sustainable Environment,Regulatory Services,REG00,Employee wellbeing/Other employee expenses,0021,312.00,Team Prevent UK Ltd,148151,10/04/2014,10200827
INSERTED DETAIL,Resources & Corporate Governance ,Toilet Cleaning,WBC01,Employee wellbeing/Other employee expenses,0021,104.00,Team Prevent UK Ltd,148151,10/04/2014,10200827
INSERTED DETAIL,Resources & Corporate Governance,Housing Maintenance,WHM00,Employee wellbeing/Other employee expenses,0021,525.00,Team Prevent UK Ltd,148151,10/04/2014,10200827
INSERTED DETAIL,Resources & Corporate Governance ,Street Cleansing,WSC00,Employee wellbeing/Other employee expenses,0021,40.00,Team Prevent UK Ltd,148151,10/04/2014,10200827
INSERTED DETAIL,Resources & Corporate Governance ,Domestic Waste Collection,WWC00,Employee wellbeing/Other employee expenses,0021,484.00,Team Prevent UK Ltd,148151,10/04/2014,10200827
INSERTED DETAIL,Resources & Corporate Governance ,IT Procurement,CMP00,IT Capital Expenditure,5025,997.00,Probrand Limited,148276,10/04/2014,10200570
INSERTED DETAIL,Resources & Corporate Governance ,IT Procurement,CMP00,IT Capital Expenditure,5025,3171.00,Probrand Limited,148276,10/04/2014,10200571
INSERTED DETAIL,Capital Programme ,Woodside Gypsy & Traveller Caravan Site,RNA05,Capital Contract Payments,5000,1500.00,"Gotch, Saunders & Surridge LLP , t/a GSS Architecture",148432,03/04/2014,10200472
INSERTED DETAIL,Sustainable Environment ,Parks,PKS00,Maintenance of Equipment,0301,1077.00,J P Landscapes & Construction Ltd,148502,10/04/2014,10200488
INSERTED DETAIL,Resources & Corporate Governance ,Human Resources Centralised Services,RES31,Training fees,0011,530.00,CIBSE Services Ltd,148560,17/04/2014,10201066
INSERTED DETAIL,Resources & Corporate Governance ,IT Procurement,CMP00,IT Capital Expenditure,5025,1251.72,Intrinsic Technology Ltd,148620,10/04/2014,10200475
INSERTED DETAIL,Housing Revenue Account ,Unplanned Maintenance and Repair,UMR00,R&M External Contractors,0100,2274.97,Robert Heath Heating Ltd,148858,03/04/2014,10199589
INSERTED DETAIL,Housing Revenue Account ,Gas Heating Systems,UMR01,R&M External Contractors,0100,455.27,Robert Heath Heating Ltd,148858,03/04/2014,10199589
INSERTED DETAIL,Housing Revenue Account ,Repairs and Maintenance - Void works,UMR09,R&M External Contractors,0100,788.05,Robert Heath Heating Ltd,148858,03/04/2014,10199589
INSERTED DETAIL,Housing Revenue Account ,Supervision and Management General,MAN00,Other Miscellaneous Expenses,0444,73.38,Robert Heath Heating Ltd,148858,03/04/2014,10199589
INSERTED DETAIL,Capital Programme ,Disabled Adaptations,HCR01,Capital Contract Payments,5000,379.12,Robert Heath Heating Ltd,148858,03/04/2014,10199589
INSERTED DETAIL,Housing Revenue Account ,Unplanned Maintenance and Repair,UMR00,R&M External Contractors,0100,996.37,Robert Heath Heating Ltd,148858,10/04/2014,10200843
INSERTED DETAIL,Housing Revenue Account ,Gas Heating Systems,UMR01,R&M External Contractors,0100,71.51,Robert Heath Heating Ltd,148858,10/04/2014,10200843
INSERTED DETAIL,Housing Revenue Account ,Repairs and Maintenance - Void works,UMR09,R&M External Contractors,0100,708.00,Robert Heath Heating Ltd,148858,10/04/2014,10200843
INSERTED DETAIL,Housing Revenue Account ,Gas Heating Systems,UMR01,R&M External Contractors,0100,22725.00,Robert Heath Heating Ltd,148858,24/04/2014,10200876
INSERTED DETAIL,Resources & Corporate Governance ,General Financial Services,GFS00,Subscriptions,0421,1800.00,North Kesteven District Council,148948,10/04/2014,10200704
INSERTED DETAIL,Economy Development & Culture,The Benn Hall,BHL00,Purchases for Resale,0305,1836.96,Matthew Clark Wholesale Ltd,148975,24/04/2014,10201308
INSERTED DETAIL,Resources & Corporate Governance ,IT Procurement,CMP00,IT Capital Expenditure,5025,5433.00,One Source IT Ltd,148989,17/04/2014,10201060
INSERTED DETAIL,Resources & Corporate Governance ,IT Procurement,CMP00,IT Capital Expenditure,5025,17010.00,One Source IT Ltd,148989,24/04/2014,10201061
INSERTED DETAIL,Resources & Corporate Governance,Housing Maintenance,WHM00,External Contractor & Operator,0742,500.00,PJR Services,149062,10/04/2014,10200751
INSERTED DETAIL,Resources & Corporate Governance,Housing Maintenance,WHM00,External Contractor & Operator,0742,500.00,PJR Services,149062,17/04/2014,10201017
INSERTED DETAIL,Housing Revenue Account ,Repairs and Maintenance - Void works,UMR09,R&M External Contractors,0100,840.00,Elite Surveyors Ltd,149107,10/04/2014,10200627
INSERTED DETAIL,Resources & Corporate Governance ,Customer and Information Strategy,CIS10,Training fees,0011,3675.00,ICOMM Technologies Ltd,149115,17/04/2014,10197654
INSERTED DETAIL,Capital Programme ,Cattle Market Site,CMS00,Capital Contract Payments,5000,937.27,Kier Construction Ltd T/A Kier Construction Central,149148,03/04/2014,10200192
INSERTED DETAIL,Housing Revenue Account ,Sheltered Housing,AGP00,Contract Cleaning,0170,11850.58,Superclean Services Wothorpe,149153,10/04/2014,10200168
INSERTED DETAIL,Sustainable Inclusive Communities,Housing Options Team,HOT00,Contract Cleaning,0170,112.51,Superclean Services Wothorpe,149153,10/04/2014,10200168
INSERTED DETAIL,Housing Revenue Account ,Estate Management,MAN22,Contract Cleaning,0170,2552.47,Superclean Services Wothorpe,149153,10/04/2014,10200168
INSERTED DETAIL,Housing Revenue Account ,Multi-Storey Flats,MSF00,Contract Cleaning,0170,1434.45,Superclean Services Wothorpe,149153,10/04/2014,10200168
INSERTED DETAIL,Resources & Corporate Governance ,Town Hall,OFF00,Contract Cleaning,0170,4195.83,Superclean Services Wothorpe,149153,10/04/2014,10200186
INSERTED DETAIL,Resources & Corporate Governance ,WSU Depot,WDP00,Contract Cleaning,0170,395.83,Superclean Services Wothorpe,149153,10/04/2014,10200186
INSERTED DETAIL,Resources & Corporate Governance ,Grounds Maintenance,WGM00,Contract Cleaning,0170,200.00,Superclean Services Wothorpe,149153,10/04/2014,10200186
INSERTED DETAIL,Economy Development & Culture,Planning General/Income,PLN00,External Legal Costs,0741,600.00,Iqbal Mohammed,149236,03/04/2014,10200188
INSERTED DETAIL,Economy Development & Culture,Planning General/Income,PLN00,External Legal Costs,0741,600.00,Iqbal Mohammed,149236,24/04/2014,10200851
INSERTED DETAIL,Economy Development & Culture,Queens Diamond Jubilee Centre,QDJ00,External Contractor & Operator,0742,2957.98,GLL ( Greenwich Leisure Ltd),149240,03/04/2014,10200417
INSERTED DETAIL,Sustainable Environment ,Parks,PKS00,Maintenance of Equipment,0301,2025.00,AHS Ltd,149255,10/04/2014,10200464
INSERTED DETAIL,Capital Programme ,Pettiver Crescent,PCH00,Capital Contract Payments,5000,231351.46,Wates Construction Ltd,149267,03/04/2014,10200399
INSERTED DETAIL,Resources & Corporate Governance,Corporate Property R&M,CPA01,R&M External Contractors,0100,4200.00,Arden Health and Safety,149273,03/04/2014,10199766
INSERTED DETAIL,Capital Programme ,Fire Risk Prevention Works,HCE18,Capital Contract Payments,5000,2423.07,Arden Health and Safety,149273,17/04/2014,10201040
INSERTED DETAIL,Resources & Corporate Governance ,TREE WORKS,WGM01,Vehicle Repair and Maintenance,0200,510.00,Ant Arboriculture & Training,149315,24/04/2014,10200933
INSERTED DETAIL,Capital Programme ,Crematorium Project,BUR04,Capital Contract Payments,5000,7548.00,Scribes Plus Ltd,149352,10/04/2014,10200660
INSERTED DETAIL,Sustainable Environment,Regulatory Services,REG00,External Contractor & Operator,0742,1390.28,Les Jackson t/a LJL,149468,10/04/2014,10200484
INSERTED DETAIL,Sustainable Environment ,Cemeteries General,CEM00,External Contractor & Operator,0742,4891.87,Omega Supplies UK Limited,149520,03/04/2014,10200239
INSERTED DETAIL,Capital Programme ,Crematorium Project,BUR04,External Contractor & Operator,0742,9871.52,Omega Supplies UK Limited,149520,03/04/2014,10200240
INSERTED DETAIL,Capital Programme ,Crematorium Project,BUR04,External Contractor & Operator,0742,19931.00,Omega Supplies UK Limited,149520,03/04/2014,10200241
INSERTED DETAIL,Capital Programme ,Crematorium Project,BUR04,External Contractor & Operator,0742,2287.12,Omega Supplies UK Limited,149520,03/04/2014,10200242
INSERTED DETAIL,Capital Programme ,Crematorium Project,BUR04,Capital Contract Payments,5000,2270.00,Christian Day Limited,149629,03/04/2014,10200068
INSERTED DETAIL,Capital Programme ,IBS development,IBS00,IT Capital Expenditure,5025,3000.00,Inform CPI Ltd,149666,03/04/2014,10200060
INSERTED DETAIL,Capital Programme ,Private Sector Renovation Loans,REN00,Capital Contract Payments,5000,2440.00,Karl Brightman,149667,03/04/2014,10200174
INSERTED DETAIL,Capital Programme ,Private Sector Renovation Loans,REN00,Capital Contract Payments,5000,1768.20,Karl Brightman,149667,03/04/2014,10200175
INSERTED DETAIL,Housing Revenue Account ,Property Maintenance,MAN23,Conference & Seminar Fees,0401,990.00,CORGI Technical Services Ltd,149672,03/04/2014,10200158
INSERTED DETAIL,Economy Development & Culture,The Benn Hall,BHL00,Special Events/Activities,0447,800.00,Shane Crofts,149680,03/04/2014,10200335
INSERTED DETAIL,Capital Programme ,Disabled Facilities Grant,REN01,Capital Grants,5014,4370.00,P C Barry Building Contractors,149694,10/04/2014,10200433
INSERTED DETAIL,Capital Programme ,Disabled Facilities Grant,REN01,Capital Grants,5014,4100.00,P C Barry Building Contractors,149694,10/04/2014,10200521
INSERTED DETAIL,Capital Programme ,Crematorium Project,BUR04,Agency Staff,0003,2000.00,A A Gibson,149696,03/04/2014,10200409
INSERTED DETAIL,Capital Programme ,Crematorium Project,BUR04,Capital Contract Payments,5000,1000.00,A A Gibson,149696,10/04/2014,10200661
INSERTED DETAIL,Sustainable Environment ,Parks,PKS00,New Equipment,0300,27925.00,Kyron Energy and Power,149702,10/04/2014,10200783
INSERTED DETAIL,Capital Programme ,Open Spaces Refurbishment,LEI08,Capital Contract Payments,5000,3300.00,WNCT Enterprises Ltd,149703,10/04/2014,10200620
detail,Sustainable Environment ,Crime and Disorder Activities,CAD00,Other Miscellaneous Expenses,0444,817.20,Primesight Ltd,149712,10/04/2014,10200729
,Resources & Corporate Governance,Safety & Resilience,EPL00,AA Car Essentials Winter Car Kit,0300,665.10,Amazon,,08/04/2014,31804
,,Balance Sheet,BS,Cov & Warks Pooling Fund,9476,1071995.00,Cov & Warks Pooling Fund,,29/04/2014,31768
,,Balance Sheet,BS,Business Rate Retention Scheme payment,9476,1144688.00,CLG,,30/04/2014,31802
,,Balance Sheet,BS,Business Rate Retention Scheme payment,9476,315964.00,WCC County Fund,,30/04/2014,31785
,,Balance Sheet,BS,Q4 13/14 Housing Pooling Payment,9820,143827.21,Department for Communities & Local Govt,,30/04/2014,31786
